Cogmind - Beta 16.1 @@@ ROGUE MODE // 2026.02.23 @ 15:16:04 Player: Fleshy Vegetable Bird Result: Destroyed by S-10 Pest with Light Assault Rifle Performance ------------- Evolutions (0) 0 Regions Visited (2) 400 Robots Destroyed (21) 105 Value Destroyed (405) 405 Prototype IDs (0) 0 Alien Tech Used (0) 0 Bonus (0) 0 TOTAL SCORE: 910 Bonus ------- None Cogmind --------- Core Integrity 0/250 Matter 249/300 Energy 76/250 System Corruption 0% Temperature Cool (0) Movement Treading (360) Ox2 Location -10/Subcaves Parts ------- > --- POWER (1) -------- Ion Engine > --- PROPULSION (2) --- Spiked Treads Wheel > --- UTILITY (2) ------ High-capacity Storage Unit Structural Scanner > --- WEAPON (2) ------- Light Assault Rifle > --- INVENTORY (20) --- Subdweller Power Source Light Nuclear Core Light Treads Wheel Wheel Subdweller Monowheel Huge Storage Unit Medium Matter Pod (100) Improved Terrain Scanner Seismic Detector Hacking Suite Peak State ------------ > --- POWER ------------ Ion Engine > --- PROPULSION ------- Wheel Wheel > --- UTILITY ---------- Small Storage Unit Improved Terrain Scanner > --- WEAPON ----------- Medium Laser Light Assault Rifle > --- INVENTORY -------- Light Treads Wheel Wheel Wheel Wheel Seismic Detector Mining Laser [Rating: 9] Favorites ----------- Power Ion Engine Engine Ion Engine Propulsion Wheel Treads Light Treads Wheel Wheel Utility Medium Storage Unit Device Seismic Detector Storage Medium Storage Unit Weapon Light Assault Rifle Energy Gun Medium Laser Ballistic Gun Light Assault Rifle Special Weapon Mining Laser Impact Weapon Hammer Build | -11 -10 -10 ------- Run | Yrd Mat Sub Slots Evolved . | . . . Power . | . . . Propulsion . | . . . Utility . | . . . Weapon . | . . . Parts Attached 24 | 8 13 3 Power 2 | 1 1 . Engine 2 | 1 1 . Core . | . . . Reactor . | . . . Propulsion 10 | 2 5 3 Treads 2 | . 1 1 Leg . | . . . Wheel 8 | 2 4 2 Hover . | . . . Flight . | . . . Utility 7 | 3 4 . Device 4 | 2 2 . Storage 3 | 1 2 . Processor . | . . . Hackware . | . . . Protection . | . . . Artifact . | . . . Weapon 5 | 2 3 . Energy Gun 1 | 1 . . Energy Cannon . | . . . Ballistic Gun 2 | 1 1 . Ballistic Cannon . | . . . Launcher . | . . . Special Weapon 1 | . 1 . Impact Weapon 1 | . 1 . Slashing Weapon . | . . . Piercing Weapon . | . . . Special Melee Weapon . | . . . Unidentified Prototypes . | . . . Parts Lost 8 | . 3 5 Power 1 | . . 1 Propulsion 3 | . 1 2 Utility 1 | . 1 . Weapon 3 | . 1 2 Highest Loss Streak 4 | . 2 4 To Critical Strikes . | . . . Average Backups 9 | 3 10 14 Power 1 | . 1 2 Propulsion 4 | 2 4 5 Utility 3 | . 3 5 Weapon 1 | . 1 . Tool/Special . | . . . Unused Backups 9 | 1 . 8 Power 2 | . . 2 Propulsion 3 | . . 3 Utility 3 | . . 3 Weapon 1 | 1 . . Tool/Special . | . . . Average Slot Usage (%) 94 | . 95 88 Engine 12 | . 14 7 Treads 3 | . 4 . Wheel 24 | . 23 26 Device 10 | . 10 14 Storage 14 | . 14 14 Energy Gun 4 | . 5 . Ballistic Gun 12 | . 12 16 Impact Weapon 9 | . 9 8 Peak Build Rating 9 | 9 9 9 Average Rating 7 | 5 7 8 On Entrance 5 | . 7 9 Avg Prop Armor Cover (%) 14 | 7 14 . Naked Turns . | . . . Heaviest Build 49 | 14 48 49 Greatest Support 20 | 20 20 20 Greatest Overweight (x) 4 | 1 2 4 Average Overweight (x) . | . . 2 Largest Inventory Capacity 20 | 8 20 20 Average Capacity 12 | 7 11 20 Most Carried 15 | 7 15 15 Average Carried 9 | 3 10 14 Final Capacity 20 | 8 20 20 Final Carried 15 | 7 15 11 Class Distribution -------------------- 92% | Mutant 7% | Scavenger-Mutant Dominant Class ---------------- Mutant | -10/Materials Mutant | -10/Subcaves Resources | -11 -10 -10 ----------- Run | Yrd Mat Sub Matter Collected 624 | 301 323 . Remotely . | . . . Salvage Created 780 | 177 603 . Parts 36 | 15 21 . Haulers Intercepted 1 | . 1 . Recyclers Shooed 2 | . 2 . Parts Field Recycled . | . . . Retrieved Matter . | . . . Parts Self-Destructed 7 | . . 7 Prevented . | . . . Parts Restored . | . . . Kills | -11 -10 -10 ------- Run | Yrd Mat Sub Combat Hostiles Destroyed 11 | . 11 . Melee 5 | . 5 . Guns 4 | . 4 . Classes Destroyed 7 | 2 5 . Tunneler 5 | 5 . . Hauler 1 | . 1 . Recycler 3 | 1 2 . Operator 1 | . 1 . Swarmer 3 | . 3 . Grunt 7 | . 7 . Subdweller 1 | . 1 . Best Kill Streak 5 | 3 5 . Combat Bots Only 5 | . 5 . Max Kills in Single Turn 1 | 1 1 . Gunslinging . | . . . Exploded . | . . . Melee 1 | . 1 . Uniques/NPCs Destroyed . | . . . Combat | -11 -10 -10 -------- Run | Yrd Mat Sub Hostile Shots Fired 136 | . 59 77 Missed 35 | . 16 19 Hits 101 | . 43 58 Projectile 101 | . 43 58 Damage Taken 1008 | . 455 553 Core 253 | . 68 185 Absorbed by Shields . | . . . Core Remaining (%) 100 | 100 . . Volleys Fired 49 | 21 22 6 Largest 2 | 2 2 1 Hottest 70 | 70 70 20 Shots Fired 85 | 42 37 6 Gun 85 | 42 37 6 Cannon . | . . . Launcher . | . . . Special . | . . . Kinetic 50 | 21 23 6 Thermal 35 | 21 14 . Explosive . | . . . Electromagnetic . | . . . Robot Hit Streak 7 | 5 7 4 Robot Miss Streak 4 | 4 3 3 Penetration Max . | . . . Secondary Targets 1 | . 1 . Max Gunslinging Chain 1 | . 1 . Shots Hit Robots 67 | 23 40 4 Core Hits 23 | 10 13 . Critical Kills 1 | . 1 . Critical Parts Destroyed 2 | . 2 . Critical Strikes 6 | 1 5 . Burn 3 | 1 2 . Smash 3 | . 3 . Melee Attacks 42 | . 34 8 Impact 42 | . 34 8 Slashing . | . . . Piercing . | . . . Sneak Attacks 4 | . 4 . Combat Hostiles . | . . . Follow-up Attacks . | . . . Damage Inflicted 1104 | 244 814 46 Guns 469 | 244 201 24 Cannons . | . . . Explosions . | . . . Melee 635 | . 613 22 Ramming . | . . . Kinetic 216 | 92 100 24 Thermal 253 | 152 101 . Explosive . | . . . Electromagnetic . | . . . Impact 635 | . 613 22 Slashing . | . . . Piercing . | . . . Highest Corruption . | . . . Average Corruption . | . . . Corruption Purged . | . . . Corruption Blocked . | . . . Overload Shots . | . . . Overflow Damage 150 | . 150 . Projectiles . | . . . Explosions . | . . . Melee 150 | . 150 . Knockbacks 2 | . 2 . Impact 2 | . 2 . Kinetic . | . . . Secondary . | . . . Self-Inflicted Damage . | . . . Shots . | . . . Rammed . | . . . Targets Rammed . | . . . Kicked . | . . . Crushed . | . . . Highest Temperature 130 | 50 130 . Average Temperature 31 | 21 44 . Received Heat Transfer 246 | . 162 84 Siege Activations . | . . . Martial Activations . | . . . Shielding Activations . | . . . Robots Disrupted . | . . . Combat Hostiles . | . . . Robots Corrupted 2 | . 2 . Combat Hostiles 1 | . 1 . Parts Fried 6 | . 6 . Impact Corruptions 6 | . 6 . Robots Melted . | . . . Combat Hostiles . | . . . Parts Melted 3 | 2 1 . Heat Transferred 962 | 518 444 . Parts Sabotaged . | . . . Parts Stolen . | . . . Parts Stripped . | . . . Power Chain Reactions . | . . . Alert | -11 -10 -10 ------- Run | Yrd Mat Sub Maximum Alert Level . | . . . Low Security (%) 100 | 100 100 . Level 1 . | . . . Level 2 . | . . . Level 3 . | . . . Level 4 . | . . . Level 5 . | . . . High Security . | . . . Max Security . | . . . Peak Influence 197 | 10 197 . Initial 3 | . 3 . Average 50 | 2 57 . Influence Increases 369 | 30 309 30 Destroy 0b10 Robot/C 200 | . 200 . Destroy 0b10 Robot/NC 50 | 30 20 . Destroy Leader 42 | . 42 . Destroy Structure 2 | . 2 . Lose Combat Pursuer 75 | . 45 30 Influence Decreases 359 | 25 301 33 Entered New Map 9 | . 2 7 Time Decay 310 | 25 269 16 Lost Part 40 | . 30 10 Squads Dispatched 2 | . 2 . Investigation 1 | . 1 . Extermination . | . . . Reinforcement 1 | . 1 . Assault . | . . . Garrison . | . . . Intercept . | . . . Searches Triggered . | . . . Construction Impeded . | . . . Haulers Reinforced . | . . . Active Scanning Responses . | . . . Cargo Convoy Interrupts . | . . . Stealth | -11 -10 -10 --------- Run | Yrd Mat Sub Distress Signals 3 | . 3 . Communications Jammed . | . . . Distress Signals . | . . . Times Spotted 38 | . 28 10 Peak Tracking Total 9 | . 8 9 Tactical Retreats 4 | . 3 1 Traps | -11 -10 -10 ------- Run | Yrd Mat Sub Traps Triggered . | . . . Indirectly . | . . . Trap Hack Attempts . | . . . Triggered . | . . . Disarmed . | . . . Reprogrammed . | . . . Reused . | . . . Traps Extracted . | . . . Installed . | . . . Triggered . | . . . Machines | -11 -10 -10 ---------- Run | Yrd Mat Sub Machines Disabled . | . . . Max in Single Turn . | . . . Machines Repaired . | . . . Machines Dismantled . | . . . Machines Sabotaged . | . . . Overloaded Fab Kills . | . . . Hacking | -11 -10 -10 --------- Run | Yrd Mat Sub Machines Accessed 3 | . 3 . Terminals 3 | . 3 . Fabricators . | . . . Repair Stations . | . . . Recycling Units . | . . . Scanalyzers . | . . . Garrison Access . | . . . Total Hacks 7 | . 7 . Successful 2 | . 2 . Failed 5 | . 5 . Catastrophic 2 | . 2 . Database Lockouts . | . . . Manual 6 | . 6 . Terminals 7 | . 7 . Fabricators . | . . . Repair Stations . | . . . Recycling Units . | . . . Scanalyzers . | . . . Garrison Access . | . . . Terminal Hacks . | . . . Fabricator Hacks . | . . . Repair Station Hacks . | . . . Recycling Unit Hacks . | . . . Scanalyzer . | . . . Garrison Access Hacks . | . . . Unauthorized Hacks 2 | . 2 . Terminals 2 | . 2 . Botnet 2 | . 2 . Fabricators . | . . . Repair Stations . | . . . Recycling Units . | . . . Scanalyzers . | . . . Garrison Access . | . . . Data Cores Recovered . | . . . Used . | . . . Hacking Detections 3 | . 3 . Full Trace Events . | . . . Feedback Events . | . . . Feedback Blocked . | . . . Robot Schematics Acquired . | . . . Robots Built . | . . . Authchips . | . . . Time . | . . . Total Robot Build Rating . | . . . Part Schematics Acquired . | . . . Parts Built . | . . . Authchips . | . . . Time . | . . . Total Part Build Rating . | . . . Part Studies Acquired . | . . . Parts Repaired . | . . . Time . | . . . Parts Recycled . | . . . Recycled Matter . | . . . Retrieved Matter . | . . . Retrieved Components . | . . . Parts Scanalyzed . | . . . Part Schematics Acquired . | . . . Parts Damaged . | . . . Bothacking | -11 -10 -10 ------------ Run | Yrd Mat Sub Used RIF Installer . | . . . Robots Hacked . | . . . Non-combat . | . . . Combat . | . . . Robot Hacks Applied . | . . . Relay Couplers Released . | . . . Fabnet Peak Effective % . | . . . Robots Rewired . | . . . Allies Hacked . | . . . Hacks Repelled . | . . . Allies | -11 -10 -10 -------- Run | Yrd Mat Sub Total Allies . | . . . Largest Group . | . . . Highest-Rated Group . | . . . Highest-Rated Ally . | . . . Total Orders . | . . . Ally Attacks . | . . . Total Damage . | . . . Kills . | . . . Allies Corrupted . | . . . Allies Melted . | . . . Intel | -11 -10 -10 ------- Run | Yrd Mat Sub Active Infowar (turns) 848 | 24 667 157 Structural 278 | . 121 157 Seismic 570 | 24 546 . Robot Analysis Total . | . . . Derelict Logs Recovered . | . . . Drone Launches . | . . . Drone Recoveries . | . . . Exploration | -11 -10 -10 ------------- Run | Yrd Mat Sub Turns Passed 1223 | 149 917 157 Spaces Moved 841 | 82 652 107 Core 3 | 3 . . Treads . | . . . Legs . | . . . Wheels 838 | 79 652 107 Hover . | . . . Flight . | . . . Fastest Speed 50 | 50 80 110 Average Speed 90 | 84 87 110 Slowest Speed 140 | 100 110 140 Overloaded Moves . | . . . Propulsion Burnouts . | . . . Robots Hopped . | . . . Potential Cave-ins . | . . . Cave-ins Triggered . | . . . Exploration Rate (%) 28 | 4 71 11 Regions Visited 2 Branch Regions 1 Pre-discovered Areas . | . . . Known Exits Taken . | . . . Unknown Exits Taken 2 | 1 1 . Scrap Searched . | . . . Spaces Dug 2 | . 2 . Terrain Destroyed 2 | . 2 . Melee 2 | . 2 . Projectile . | . . . AOE . | . . . Terrain Rammed . | . . . Walls Destroyed . | . . . Machines Disabled . | . . . Actions | -11 -10 -10 --------- Run | Yrd Mat Sub Total 1147 | 121 899 127 Wait 150 | . 150 . Move 839 | 81 651 107 Hop . | . . . Pick Up 22 | 9 13 . Fast Attach 9 | 7 2 . Attach 7 | 1 2 4 Detach . | . . . Swap 19 | . 17 2 Drop 10 | 2 8 . Fire 49 | 21 22 6 Melee 42 | . 34 8 Ram . | . . . Kick . | . . . Crush . | . . . Escape Stasis . | . . . Rewire . | . . . Trap . | . . . Miscellaneous . | . . . Route ------- -11/Scrapyard -10/Materials (discovered 4 exits: [*Mat x2] / [*Min] / [*Sub]) -10/Subcaves (discovered 1 exit: [*Rec]) History --------- Turn | Location | Event 19 | -11/Scrapyard | Discovered new exit (range 15) 150 | -11/Scrapyard | Entered Materials 327 | -10/Materials | Build established: Mutant 395 | -10/Materials | Discovered new exit (range 6) 475 | -10/Materials | Discovered new exit (range 13) 736 | -10/Materials | Discovered new exit (range 5) 750 | -10/Materials | Derelicts attacked the area 1034 | -10/Materials | Discovered new exit (range 9) 1067 | -10/Materials | Entered Subcaves 1148 | -10/Subcaves | Core integrity fell below 50% 1184 | -10/Subcaves | Discovered new exit (range 12) 1200 | -10/Subcaves | Core integrity fell below 20% 1224 | -10/Subcaves | Destroyed by S-10 Pest with Light Assault Rifle Last Messages --------------- 01012_ G-34 Mercenary destroyed. 01014_ Acquired 22 matter. 01015_ R-06 Scavenger collects Wheel. 01019_ R-06 Scavenger collects Lgt. Ion Engine. 01034_ EXIT=FOUND 01037_ R-06 Scavenger collects Structural Scanner. 01039_ Acquired 2 matter. 01045_ R-06 Scavenger destroyed. 01058_ Acquired 2 matter. LOCATION=UNKNOWN AMBIENT_HEAT=-10 GOAL=ESCAPE 01128_ QN-MWG(R): "SUBMAD!" 01137_ Ion Engine destroyed. 01184_ EXIT=FOUND 01187_ Lgt. Assault Rifle destroyed. 01188_ Wheel destroyed. 01192_ S-10 Pest destroyed. 01215_ Hammer destroyed. Map ----- +----------------------------------------------------+ | ???????????????????????????????????######### # | | ????????????????????????????????##### ##### | | ???????????????????????????????###### #### | | ???????????????????????????????### ## | | ???????????????????????????????## | | ???????????????????????????????## | | ???????????????????????????????## | | ???????????????????????????????### | | ???????????????????????????????###### | | ????????????????????????????????######### | | ???????????????????????????????????########## | | ???????????????????????????????????????####### | | ???????????????????????????????????????????##### | | ????????????????????????????????????????????#### | | ?????????????????????????????????????????????## | | ?????????????????????????????????????????????## | | ?????????????????????????????????????????????### # | | ?????????????????????????????????????????????#### | | ????????????????????????????????????????????##### | | ????????????????????????????????????????????### | | ????????????????????????????????????????????## | | ????????????????????????????????????????????## | | ????????????????????????????????????????????### | | ???????????????????????#######???######?????### | | ?????????????????????##########?############?### | | ????????????????????#####@ ####### ########### | | ????????????????????### ##### * ###### | | ????????????????????## s## [%= | | ????????????????????## ## | | ?????????????????##### s ## #### | | ?????????????????## ### #### | | ?????????????????## ### #### #### | | ?????????????????## ########### ## | | ????????????????? ?########## # | | ???????????????? ??????????## =[ | | ??????????????? ??????????## *%# ## | | ??????????????? ???????????## =######### | | ???????????????? ???????????## ######### | | ????????????????? ###???????????## ##?????## | | ?????????????????####??????????? ?????# | | ???????????????????????????????? ??????## # | | ?????????????????????????????## ??????### | | ?????????????????????????????##" ???????## | | ?????????????????????????????##" " " ???????? | | ?????????????????????????????##"""" """???????? | | ?????????????????????????????######<###??????????? | | ?????????????????????????????##########??????????? | | ?????????????????????????????????# #????????????? | | ?????????????????????????????????????????????????? | | ?????????????????????????????????????????????????? | +----------------------------------------------------+ Best States ------------- Heat Dissipation 25 Energy Generation 10 Energy Capacity 250 Matter Stores 300 Matter Capacity 300 Sight Range 16 Terrain Scan Density 10 Evasion (%) 44 Recoil Reduction 1 Item Schematics ----------------- None Robot Schematics ------------------ None Fabricated ------------ Nothing Repaired ---------- Nothing Studied --------- None Alien Tech Used ----------------- None Achievements -------------- None Challenges ------------ None Game ------ Seed GuidedSiegeMachine Manual? 0 Play Time 00:15:05 Cumulative 405.6 hours Start 2026.02.23 @ 15:02:56 End 2026.02.23 @ 15:16:04 Sessions 1 Manual Loads 0 Difficulty Rogue Special Mode None Game No. 450 Rogue 450 Adventurer 0 Explorer 0 Win Type - Total 6 Types 3/1/1/1/0/0/0/0/0/0 Lore% 76 Gallery% 68 Achievement% 42 Wizard Run 0 Options --------- Layout 1 ASCII 0 Keyboard 0 Movement Numpad Keybinds 0 Fullscreen 1 Font 32/SmallcapsGlow Map View 50x35 Zoom Use 0% Tactical HUD 1 Map Filters NONE Filters NONE Steam 1 RUN: 9de5d9be-a2a2-4863-a8ac-bbefd62b1420